fUST/lending_fUST_20250717
["ID","MTS","AMOUNT","RATE_DAILY","PERIOD"]
[372603410,1752701448012,-1485.63,0.00020386,2]
[372603412,1752701448024,-460.0,0.00020386,2]
[372603414,1752701448036,-159.31,0.00020386,2]
[372603416,1752701448047,-872.37,0.00020386,2]
[372603418,1752701448057,-460.0,0.00020386,2]
[372603420,1752701448068,-460.0,0.00020386,2]
[372603423,1752701448088,-460.0,0.00020386,2]
[372603425,1752701448099,-460.0,0.00020386,2]
[372603428,1752701448110,-460.0,0.00020386,2]
[372603430,1752701448120,-460.0,0.00020386,2]
[372603432,1752701448129,-460.0,0.00020387,2]
[372603434,1752701448138,-460.0,0.00020387,2]
[372603436,1752701448148,-460.0,0.00020387,2]
[372603438,1752701448158,-460.0,0.00020387,2]
[372603440,1752701448170,-426.66,0.00020387,2]
[372603442,1752701448181,-460.0,0.00020387,2]
[372603444,1752701448191,-460.0,0.00020387,2]
[372603446,1752701448201,-460.0,0.00020387,2]
[372603448,1752701448211,-460.0,0.00020387,2]
[372603450,1752701448221,-460.0,0.00020387,2]
[372603452,1752701448230,-502.35,0.00020387,2]
[372603454,1752701448240,-460.0,0.00020387,2]
[372603456,1752701448250,-460.0,0.00020387,2]
[372603459,1752701448260,-973.31,0.00020387,2]
[372603461,1752701448271,-4139.78,0.00020387,2]
[372603463,1752701448282,-460.0,0.00020387,2]
[372603465,1752701448291,-905.56,0.00020387,2]
[372603467,1752701448301,-460.0,0.00020387,2]
[372603469,1752701448310,-500.0,0.00020447,2]
[372603471,1752701448320,-500.0,0.00020447,2]
[372603473,1752701448330,-500.0,0.00020447,2]
[372603475,1752701448339,-622.59347523,0.00020468,2]
[372603477,1752701448348,-500.0,0.00020468,2]
[372603479,1752701448358,-2420.32,0.00020471,2]
[372603481,1752701448367,-764.07,0.00020471,2]
[372603483,1752701448377,-575.01,0.00020471,2]
[372603485,1752701448386,-1155.56,0.00020471,2]
[372603487,1752701448396,-2407.79,0.00020471,2]
[372603489,1752701448406,-500.0,0.00020486,2]
[372603491,1752701448416,-179.91004498,0.00020533,2]
[372603493,1752701448426,-500.0,0.00020547,2]
[372603495,1752701448435,-500.0,0.00020547,2]
[372603497,1752701448445,-500.0,0.00020547,2]
[372603499,1752701448455,-544.24531205,0.00020547,2]
[372603501,1752701448464,-3592.4174374,0.0002059,3]
[372603503,1752701448474,-590.56197606,0.0002066,2]
[372603505,1752701448485,-460.0,0.0002066,2]
[372603507,1752701448495,-460.0,0.0002066,2]
[372603509,1752701448504,-460.0,0.0002066,2]
[372603511,1752701448514,-460.0,0.0002066,2]
[372603513,1752701448524,-3589.75,0.0002066,2]
[372603515,1752701448535,-2048.29,0.0002066,2]
[372603517,1752701448545,-460.0,0.0002066,2]
[372603519,1752701448554,-543.61,0.0002066,2]
[372603521,1752701448564,-460.0,0.0002066,2]
[372603523,1752701448575,-460.0,0.0002066,2]
[372603526,1752701448585,-677.6,0.0002066,2]
[372603528,1752701448595,-460.0,0.0002066,2]
[372603530,1752701448605,-460.0,0.0002066,2]
[372603532,1752701448614,-460.0,0.0002066,2]
[372603534,1752701448624,-460.0,0.0002066,2]
[372603536,1752701448633,-1529.53,0.0002066,2]
[372603538,1752701448642,-460.0,0.0002066,2]
[372603540,1752701448652,-460.0,0.0002066,2]
[372603542,1752701448661,-460.0,0.0002066,2]
[372603558,1752701448671,-2116.11,0.0002066,2]
[372603560,1752701448823,-460.0,0.0002066,2]
[372603562,1752701448835,-460.0,0.0002066,2]
[372603565,1752701448844,-460.0,0.0002066,2]
[372603567,1752701448854,-460.0,0.0002066,2]
[372603568,1752701448863,-460.0,0.0002066,2]
[372603571,1752701448872,-1323.64,0.0002066,2]
[372603572,1752701448884,-1485.63,0.0002066,2]
[372603574,1752701448893,-460.0,0.0002066,2]
[372603576,1752701448903,-872.37,0.0002066,2]
[372603578,1752701448912,-337.21,0.0002066,2]
[372603581,1752701448922,-460.0,0.0002066,2]
[372603583,1752701448932,-496.73,0.0002066,2]
[372603585,1752701448941,-334.42,0.0002066,2]
[372603586,1752701448952,-460.0,0.0002066,2]
[372603589,1752701448961,-460.0,0.0002066,2]
[372603590,1752701448971,-367.08452644,0.00020661,2]
[372603593,1752701448981,-460.0,0.00020661,2]
[372603594,1752701448991,-460.0,0.00020661,2]
[372603597,1752701449000,-460.0,0.00020661,2]
[372603599,1752701449010,-460.0,0.00020661,2]
[372603601,1752701449020,-460.0,0.00020661,2]
[372603603,1752701449031,-460.0,0.00020661,2]
[372603605,1752701449041,-460.0,0.00020661,2]
[372603607,1752701449050,-460.0,0.00020661,2]
[372603609,1752701449060,-502.35,0.00020661,2]
[372603611,1752701449070,-460.0,0.00020661,2]
[372603613,1752701449079,-460.0,0.00020661,2]
[372603615,1752701449093,-973.31,0.00020661,2]
[372603617,1752701449104,-4139.78,0.00020661,2]
[372603619,1752701449114,-460.0,0.00020661,2]
[372603621,1752701449123,-905.56,0.00020661,2]
[372603623,1752701449133,-460.0,0.00020661,2]
[372603625,1752701449143,-2000.0,0.00020716,2]
[372603627,1752701449153,-476.07036022,0.00020728,2]
[372603629,1752701449162,-160.0,0.00020728,2]
[372603631,1752701449172,-160.0,0.00020728,2]
[372603633,1752701449182,-160.0,0.00020728,2]
[372603635,1752701449193,-12605.49131908,0.00020728,2]
[372603637,1752701449202,-230.8109288,0.00020728,2]
[372603639,1752701449212,-214.40824756,0.00020728,2]
[372603641,1752701449222,-215.5496034,0.00020728,2]
[372603643,1752701449232,-525.58295679,0.00020728,2]
[372603645,1752701449241,-838.99048831,0.00020728,2]
[372603647,1752701449251,-160.0,0.00020728,2]
[372603649,1752701449261,-160.0,0.00020735,2]
[372603651,1752701449270,-160.0,0.00020735,2]
[372603653,1752701449282,-160.0,0.00020735,2]
[372603655,1752701449292,-160.0,0.00020735,2]
[372603658,1752701449302,-160.0,0.00020743,2]
[372603660,1752701449312,-2420.32,0.00020745,2]
[372603662,1752701449321,-764.07,0.00020745,2]
[372603664,1752701449331,-575.01,0.00020745,2]
[372603666,1752701449341,-1155.56,0.00020745,2]
[372603667,1752701449351,-2407.79,0.00020745,2]
[372603669,1752701449362,-870.2371693,0.00020806,2]
[372603672,1752701449372,-3592.4174374,0.00020831,4]
[372603674,1752701449381,-260.0,0.00020931,2]
[372603676,1752701449390,-460.0,0.00020934,2]
[372603678,1752701449400,-460.0,0.00020934,2]
[372603680,1752701449409,-460.0,0.00020934,2]
[372603682,1752701449418,-460.0,0.00020934,2]
[372603684,1752701449427,-3589.75,0.00020934,2]
[372603686,1752701449436,-2048.29,0.00020934,2]
[372603688,1752701449446,-210.83,0.00020934,2]
[372603690,1752701449455,-543.61,0.00020934,2]
[372603692,1752701449464,-460.0,0.00020934,2]
[372603694,1752701449473,-460.0,0.00020934,2]
[372603696,1752701449483,-677.6,0.00020934,2]
[372603698,1752701449492,-460.0,0.00020934,2]
[372603700,1752701449503,-192.12,0.00020934,2]
[372603702,1752701449512,-460.0,0.00020934,2]
[372603704,1752701449522,-460.0,0.00020934,2]
[372603706,1752701449533,-1529.53,0.00020934,2]
[372603708,1752701449542,-460.0,0.00020934,2]
[372603710,1752701449551,-460.0,0.00020934,2]
[372603712,1752701449561,-460.0,0.00020934,2]
[372603714,1752701449571,-2116.11,0.00020934,2]
[372603716,1752701449580,-460.0,0.00020934,2]
[372603718,1752701449590,-460.0,0.00020934,2]
[372603720,1752701449599,-381.96,0.00020934,2]
[372603722,1752701449608,-172.87,0.00020934,2]
[372603724,1752701449618,-460.0,0.00020934,2]
[372603726,1752701449627,-1323.64,0.00020934,2]
[372603728,1752701449637,-1485.63,0.00020934,2]
[372603730,1752701449646,-460.0,0.00020934,2]
[372603732,1752701449657,-872.37,0.00020934,2]
[372603734,1752701449666,-460.0,0.00020934,2]
[372603736,1752701449676,-460.0,0.00020934,2]
[372603738,1752701449686,-460.0,0.00020934,2]
[372603740,1752701449695,-460.0,0.00020935,2]
[372603743,1752701449705,-460.0,0.00020935,2]
[372603744,1752701449715,-460.0,0.00020935,2]
[372603747,1752701449726,-460.0,0.00020935,2]
[372603749,1752701449736,-460.0,0.00020935,2]
[372603751,1752701449748,-460.0,0.00020935,2]
[372603753,1752701449758,-414.24,0.00020935,2]
[372603755,1752701449768,-502.35,0.00020935,2]
[372603757,1752701449778,-460.0,0.00020935,2]
[372603759,1752701449788,-460.0,0.00020935,2]
[372603761,1752701449798,-973.31,0.00020935,2]
[372603763,1752701449809,-4139.78,0.00020935,2]
[372603765,1752701449819,-460.0,0.00020935,2]
[372603767,1752701449829,-905.56,0.00020935,2]
[372603769,1752701449840,-460.0,0.00020935,2]
[372603771,1752701449849,-1000.0,0.00020995,2]
[372603773,1752701449859,-500.0,0.00020995,2]
[372603775,1752701449868,-1000.0,0.00020995,2]
[372603777,1752701449878,-2420.32,0.00021019,2]
[372603779,1752701449889,-764.07,0.00021019,2]
[372603781,1752701449899,-575.01,0.00021019,2]
[372603783,1752701449908,-1155.56,0.00021019,2]
[372603785,1752701449917,-2407.79,0.00021019,2]
[372603787,1752701449927,-1862.017,0.00021033,2]
[372603789,1752701449936,-178.331,0.00021033,2]
[372603791,1752701449946,-3592.4174374,0.00021072,4]
[372603793,1752701449955,-421.79,0.00021208,2]
[372603795,1752701449964,-460.0,0.00021208,2]
[372603797,1752701449974,-460.0,0.00021208,2]
[372603799,1752701449984,-460.0,0.00021208,2]
[372603801,1752701449994,-460.0,0.00021208,2]
[372603803,1752701450003,-3589.75,0.00021208,2]
[372603805,1752701450013,-2048.29,0.00021208,2]
[372603807,1752701450022,-543.61,0.00021208,2]
[372603809,1752701450032,-460.0,0.00021208,2]
[372603811,1752701450042,-460.0,0.00021208,2]
[372603813,1752701450051,-677.6,0.00021208,2]
[372603815,1752701450061,-460.0,0.00021208,2]
[372603817,1752701450070,-460.0,0.00021208,2]
[372603819,1752701450080,-460.0,0.00021208,2]
[372603821,1752701450090,-1529.53,0.00021208,2]
[372603823,1752701450099,-460.0,0.00021208,2]
[372603825,1752701450108,-460.0,0.00021208,2]
[372603827,1752701450117,-460.0,0.00021208,2]
[372603829,1752701450127,-2116.11,0.00021208,2]
[372603831,1752701450136,-460.0,0.00021208,2]
[372603833,1752701450146,-460.0,0.00021208,2]
[372603835,1752701450155,-460.0,0.00021208,2]
[372603837,1752701450165,-1323.64,0.00021208,2]
[372603839,1752701450175,-1485.63,0.00021208,2]
[372603841,1752701450185,-460.0,0.00021208,2]
[372603843,1752701450194,-872.37,0.00021208,2]
[372603845,1752701450204,-460.0,0.00021208,2]
[372603847,1752701450214,-460.0,0.00021208,2]
[372603849,1752701450223,-460.0,0.00021208,2]
[372603852,1752701450233,-460.0,0.00021209,2]
[372603854,1752701450243,-598.71,0.00021209,2]
[372603856,1752701450252,-460.0,0.00021209,2]
[372603858,1752701450261,-460.0,0.00021209,2]
[372603860,1752701450271,-460.0,0.00021209,2]
[372603862,1752701450280,-460.0,0.00021209,2]
[372603864,1752701450289,-502.35,0.00021209,2]
[372603866,1752701450299,-460.0,0.00021209,2]
[372603868,1752701450309,-460.0,0.00021209,2]
[372603870,1752701450319,-973.31,0.00021209,2]
[372603872,1752701450327,-4139.78,0.00021209,2]
[372603874,1752701450336,-460.0,0.00021209,2]
[372603876,1752701450346,-905.56,0.00021209,2]
[372603878,1752701450355,-543.07,0.00021209,2]
[372603879,1752701450364,-2500.0,0.00021264,2]
[372603882,1752701450374,-2420.32,0.00021293,2]
[372603884,1752701450382,-764.07,0.00021293,2]
[372603885,1752701450392,-575.01,0.00021293,2]
[372603887,1752701450402,-1155.56,0.00021293,2]
[372603889,1752701450411,-2407.79,0.00021293,2]
[372603891,1752701450421,-3592.4174374,0.00021314,5]
[372603894,1752701450430,-5000.0,0.00021346,2]
[372603896,1752701450439,-360.0,0.00021478,2]
[372603898,1752701450449,-460.0,0.00021482,2]
[372603899,1752701450459,-460.0,0.00021482,2]
[372603902,1752701450468,-460.0,0.00021482,2]
[372603904,1752701450477,-460.0,0.00021482,2]
[372603906,1752701450487,-3589.75,0.00021482,2]
[372603908,1752701450496,-2048.29,0.00021482,2]
[372603910,1752701450505,-543.61,0.00021482,2]
[372603912,1752701450515,-460.0,0.00021482,2]
[372603914,1752701450525,-460.0,0.00021482,2]
[372603916,1752701450535,-677.6,0.00021482,2]
[372603918,1752701450545,-554.03,0.00021482,2]
[372603920,1752701450556,-460.0,0.00021482,2]
[372603922,1752701450565,-577.41662643,0.00021482,2]
[372603924,1752701450575,-1529.53,0.00021482,2]
[372603926,1752701450584,-460.0,0.00021482,2]
[372603928,1752701450594,-213.04,0.00021482,2]
[372603930,1752701450603,-460.0,0.00021482,2]
[372603932,1752701450613,-2116.11,0.00021482,2]
[372603933,1752701450622,-460.0,0.00021482,2]
[372603936,1752701450632,-460.0,0.00021482,2]
[372603937,1752701450641,-460.0,0.00021482,2]
[372603939,1752701450650,-1323.64,0.00021482,2]
[372603941,1752701450660,-1485.63,0.00021482,2]
[372603944,1752701450669,-460.0,0.00021482,2]
[372603946,1752701450680,-872.37,0.00021482,2]
[372603948,1752701450689,-460.0,0.00021482,2]
[372603950,1752701450698,-460.0,0.00021482,2]
[372603952,1752701450708,-460.0,0.00021482,2]
[372603954,1752701450718,-460.0,0.00021483,2]
[372603956,1752701450727,-460.0,0.00021483,2]
[372603958,1752701450736,-460.0,0.00021483,2]
[372603960,1752701450746,-460.0,0.00021483,2]
[372603962,1752701450755,-460.0,0.00021483,2]
[372603964,1752701450764,-502.35,0.00021483,2]
[372603966,1752701450774,-460.0,0.00021483,2]
[372603968,1752701450786,-566.11,0.00021483,2]
[372603970,1752701450798,-973.31,0.00021483,2]
[372603972,1752701450808,-4139.78,0.00021483,2]
[372603974,1752701450818,-460.0,0.00021483,2]
[372603976,1752701450827,-905.56,0.00021483,2]
[372603978,1752701450838,-12520.75269904,0.000215,2]
[372603980,1752701450848,-1500.0,0.00021543,2]
[372603982,1752701450857,-500.0,0.00021543,2]
[372603984,1752701450867,-2420.32,0.00021567,2]
[372603986,1752701450879,-764.07,0.00021567,2]
[372603988,1752701450888,-575.01,0.00021567,2]
[372603990,1752701450898,-1155.56,0.00021567,2]
[372603992,1752701450908,-2407.79,0.00021567,2]
[372603994,1752701450917,-500.0,0.00021582,2]
[372603996,1752701450927,-870.2371693,0.00021613,2]
[372603998,1752701450937,-460.0,0.00021756,2]
[372604000,1752701450947,-460.0,0.00021756,2]
[372604002,1752701450956,-460.0,0.00021756,2]
[372604004,1752701450968,-460.0,0.00021756,2]
[372604006,1752701450977,-3589.75,0.00021756,2]
[372604008,1752701450987,-2048.29,0.00021756,2]
[372604011,1752701450997,-543.61,0.00021756,2]
[372604013,1752701451008,-460.0,0.00021756,2]
[372604015,1752701451018,-460.0,0.00021756,2]
[372604017,1752701451027,-677.6,0.00021756,2]
[372604019,1752701451037,-460.0,0.00021756,2]
[372604020,1752701451046,-460.0,0.00021756,2]
[372604023,1752701451057,-1529.53,0.00021756,2]
[372604024,1752701451066,-460.0,0.00021756,2]
[372604027,1752701451075,-2116.11,0.00021756,2]
[372604028,1752701451084,-460.0,0.00021756,2]
[372604031,1752701451093,-460.0,0.00021756,2]
[372604033,1752701451103,-399.8,0.00021756,2]
[372604034,1752701451113,-1323.64,0.00021756,2]
[372604037,1752701451123,-1485.63,0.00021756,2]
[372604039,1752701451132,-460.0,0.00021756,2]
[372604041,1752701451142,-872.37,0.00021756,2]
[372604042,1752701451152,-460.0,0.00021756,2]
[372604044,1752701451162,-460.0,0.00021756,2]
[372604046,1752701451171,-460.0,0.00021757,2]
[372604048,1752701451181,-460.0,0.00021757,2]
[372604050,1752701451191,-460.0,0.00021757,2]
[372604052,1752701451200,-460.0,0.00021757,2]
[372604055,1752701451211,-460.0,0.00021757,2]
[372604057,1752701451221,-502.35,0.00021757,2]
[372604059,1752701451230,-460.0,0.00021757,2]
[372604060,1752701451239,-973.31,0.00021757,2]
[372604063,1752701451249,-4139.78,0.00021757,2]
[372604065,1752701451258,-460.0,0.00021757,2]
[372604066,1752701451267,-905.56,0.00021757,2]
[372604068,1752701451276,-151.0,0.000218,4]
[372604071,1752701451287,-1000.0,0.00021812,2]
[372604073,1752701451297,-2420.32,0.00021841,2]
[372604075,1752701451306,-764.07,0.00021841,2]
[372604077,1752701451316,-575.01,0.00021841,2]
[372604079,1752701451325,-1155.56,0.00021841,2]
[372604081,1752701451335,-2407.79,0.00021841,2]
[372604083,1752701451344,-150000.0,0.00021841,2]
[372604085,1752701451353,-150000.0,0.00021841,2]
[372604087,1752701451362,-114424.95216023,0.00021916,2]
[372604089,1752701451372,-500.0,0.00021917,2]
[372604091,1752701451381,-500.0,0.00021917,2]
[372604103,1752701451488,-500.0,0.00021917,2]
[372604105,1752701451498,-500.0,0.00021917,2]
[372604107,1752701451508,-500.0,0.00021917,2]
[372604109,1752701451518,-500.0,0.00021917,2]
[372604111,1752701451527,-536.59,0.00021917,2]
[372604113,1752701451537,-200.0,0.00021918,2]
[372604115,1752701451547,-158.03292145,0.0002192,4]
[372604118,1752701451556,-158.03,0.0002192,4]
[372604119,1752701451566,-159.13686405,0.0002192,4]
[372604121,1752701451575,-159.13,0.0002192,4]
[372604123,1752701451586,-2283.02,0.00022,7]
[372604125,1752701451596,-24539.25,0.00022,2]
[372604127,1752701451606,-75218.82571281,0.00022,2]
[372604129,1752701451616,-352.61950143,0.00022,2]
[372604131,1752701451625,-54948.53497857,0.00022,2]
[372604133,1752701451635,-340.78315669,0.00022,14]
[372604136,1752701451647,-165.0,0.00022,2]
[372604138,1752701451658,-460.0,0.00022026,2]
[372604139,1752701451669,-460.0,0.0002203,2]
[372604142,1752701451680,-460.0,0.0002203,2]
[372604143,1752701451691,-460.0,0.0002203,2]
[372604144,1752701451701,-460.0,0.0002203,2]
[372604145,1752701451712,-3589.75,0.0002203,2]
[372604146,1752701451722,-2048.29,0.0002203,2]
[372604147,1752701451731,-543.61,0.0002203,2]
[372604148,1752701451740,-460.0,0.0002203,2]
[372604149,1752701451749,-460.0,0.0002203,2]
[372604150,1752701451759,-677.6,0.0002203,2]
[372604151,1752701451768,-460.0,0.0002203,2]
[372604152,1752701451778,-460.0,0.0002203,2]
[372604153,1752701451788,-1529.53,0.0002203,2]
[372604154,1752701451798,-460.0,0.0002203,2]
[372604156,1752701451808,-2116.11,0.0002203,2]
[372604157,1752701451819,-460.0,0.0002203,2]
[372604159,1752701451828,-460.0,0.0002203,2]
[372604161,1752701451840,-1323.64,0.0002203,2]
[372604163,1752701451849,-1485.63,0.0002203,2]
[372604165,1752701451859,-460.0,0.0002203,2]
[372604167,1752701451868,-872.37,0.0002203,2]
[372604169,1752701451878,-460.0,0.0002203,2]
[372604171,1752701451889,-460.0,0.0002203,2]
[372604173,1752701451899,-460.0,0.00022031,2]
[372604175,1752701451908,-460.0,0.00022031,2]
[372604177,1752701451918,-460.0,0.00022031,2]
[372604179,1752701451928,-460.0,0.00022031,2]
[372604181,1752701451937,-460.0,0.00022031,2]
[372604183,1752701451947,-502.35,0.00022031,2]
[372604185,1752701451956,-460.0,0.00022031,2]
[372604187,1752701451966,-973.31,0.00022031,2]
[372604189,1752701451976,-4139.78,0.00022031,2]
[372604191,1752701451986,-460.0,0.00022031,2]
[372604193,1752701451995,-905.56,0.00022031,2]
[372604195,1752701452007,-587.0,0.00022062,2]
[372604197,1752701452025,-954.97942182,0.00022091,2]
[372604199,1752701452038,-2420.32,0.00022115,2]
[372604201,1752701452047,-764.07,0.00022115,2]
[372604203,1752701452057,-575.01,0.00022115,2]
[372604205,1752701452066,-1155.56,0.00022115,2]
[372604207,1752701452076,-2407.79,0.00022115,2]
[372604209,1752701452086,-151.0,0.000222,8]
[372604211,1752701452096,-656.64663739,0.000223,2]
[372604213,1752701452106,-460.0,0.00022304,2]
[372604215,1752701452115,-460.0,0.00022304,2]
[372604217,1752701452124,-460.0,0.00022304,2]
[372604219,1752701452134,-492.55,0.00022304,2]
[372604221,1752701452143,-3589.75,0.00022304,2]
[372604223,1752701452153,-2048.29,0.00022304,2]
[372604224,1752701452163,-543.61,0.00022304,2]
[372604226,1752701452172,-460.0,0.00022304,2]
[372604228,1752701452182,-460.0,0.00022304,2]
[372604230,1752701452192,-677.6,0.00022304,2]
[372604233,1752701452202,-460.0,0.00022304,2]
[372604234,1752701452212,-1529.53,0.00022304,2]
[372604237,1752701452223,-460.0,0.00022304,2]
[372604238,1752701452232,-460.0,0.00022304,2]
[372604240,1752701452242,-2116.11,0.00022304,2]
[372604242,1752701452252,-460.0,0.00022304,2]
[372604244,1752701452261,-460.0,0.00022304,2]
[372604246,1752701452271,-1323.64,0.00022304,2]
[372604248,1752701452280,-1485.63,0.00022304,2]
[372604250,1752701452289,-444.56,0.00022304,2]
[372604252,1752701452299,-872.37,0.00022304,2]
[372604254,1752701452308,-460.0,0.00022304,2]
[372604256,1752701452318,-460.0,0.00022305,2]
[372604258,1752701452328,-460.0,0.00022305,2]
[372604260,1752701452344,-460.0,0.00022305,2]
[372604262,1752701452356,-460.0,0.00022305,2]
[372604264,1752701452366,-460.0,0.00022305,2]
[372604266,1752701452376,-502.35,0.00022305,2]
[372604268,1752701452385,-460.0,0.00022305,2]
[372604271,1752701452395,-973.31,0.00022305,2]
[372604273,1752701452404,-4139.78,0.00022305,2]
[372604274,1752701452414,-460.0,0.00022305,2]
[372604277,1752701452424,-905.56,0.00022305,2]
[372604279,1752701452433,-2420.32,0.00022389,2]
[372604281,1752701452443,-764.07,0.00022389,2]
[372604283,1752701452452,-575.01,0.00022389,2]
[372604285,1752701452462,-1155.56,0.00022389,2]
[372604286,1752701452471,-2407.79,0.00022389,2]
[372604288,1752701452481,-52950.13438887,0.000224,2]
[372604290,1752701452490,-25000.0,0.00022402,2]
[372604292,1752701452499,-3801.642,0.00022402,2]
[372604294,1752701452509,-21694.64805828,0.00022402,2]
[372604296,1752701452519,-151.0,0.00022402,2]
[372604298,1752701452529,-151.0,0.00022402,2]
[372604300,1752701452539,-151.0,0.00022402,2]
[372604302,1752701452548,-500.0,0.00022402,2]
[372604304,1752701452558,-500.0,0.00022402,2]
[372604306,1752701452568,-151.0,0.00022402,2]
[372604308,1752701452577,-500.0,0.00022402,2]
[372604310,1752701452587,-151.0,0.00022402,2]
[372604312,1752701452596,-207.4,0.00022402,2]
[372604314,1752701452606,-151.0,0.00022402,2]
[372604316,1752701452615,-151.0,0.00022402,2]
[372604318,1752701452624,-612.74679689,0.00022402,2]
[372604320,1752701452633,-151.0,0.00022402,2]
[372604322,1752701452642,-151.0,0.00022402,2]
[372604324,1752701452652,-151.0,0.00022402,2]
[372604326,1752701452661,-151.0,0.00022402,2]
[372604328,1752701452671,-151.0,0.00022402,2]
[372604330,1752701452680,-151.0,0.00022402,2]
[372604332,1752701452690,-151.0,0.00022402,2]
[372604334,1752701452699,-151.0,0.00022402,2]
[372604336,1752701452709,-151.0,0.00022402,2]
[372604338,1752701452719,-153.7637497,0.00022402,2]
[372604340,1752701452728,-151.0,0.00022402,2]
[372604342,1752701452737,-151.0,0.00022402,2]
[372604344,1752701452747,-151.0,0.00022402,2]
[372604346,1752701452755,-151.0,0.00022402,2]
[372604348,1752701452765,-151.0,0.00022402,2]
[372604350,1752701452775,-151.0,0.00022402,2]
[372604352,1752701452786,-151.0,0.00022402,2]
[372604354,1752701452797,-151.0,0.00022402,2]
[372604356,1752701452806,-151.0,0.00022402,2]
[372604358,1752701452819,-151.0,0.00022402,2]
[372604360,1752701452829,-166.46846412,0.00022402,2]
[372604362,1752701452839,-151.0,0.00022402,2]
[372604364,1752701452848,-151.0,0.00022402,2]
[372604366,1752701452858,-151.0,0.00022402,2]
[372604368,1752701452868,-175.8563729,0.00022402,2]
[372604370,1752701452877,-151.0,0.00022402,2]
[372604372,1752701452887,-151.0,0.00022402,2]
[372604374,1752701452903,-151.0,0.00022402,2]
[372604376,1752701452916,-151.0,0.00022402,2]
[372604378,1752701452926,-870.2371693,0.00022421,2]
[372604380,1752701452936,-500.0,0.00022473,2]
[372604382,1752701452945,-500.0,0.00022473,2]
[372604384,1752701452955,-500.0,0.00022473,2]
[372604386,1752701452966,-500.0,0.00022473,2]
[372604387,1752701452976,-500.0,0.00022473,2]
[372604389,1752701452985,-153363.00119759,0.0002249,7]
[372604422,1752701453295,-943.60000011,0.00018742,2]
[372604425,1752701453312,-250.71999989,0.00018742,2]
[372604427,1752701453322,-371.6808034,0.00019016,2]
[372604429,1752701453334,-330.154,0.00019016,2]
[372604432,1752701453346,-492.4851966,0.00019016,2]
[372604434,1752701453355,-3592.4174374,0.00021555,5]
[372604436,1752701453365,-3592.4174374,0.00021797,6]
[372604438,1752701453375,-3592.4174374,0.00022038,6]
[372604440,1752701453384,-3592.4174374,0.00022279,6]
[372604442,1752701453394,-460.0,0.00022304,2]
[372604444,1752701453403,-70077.56085049,0.0002249,7]
[372604446,1752701453412,-3592.4174374,0.00022521,7]
[372604448,1752701453421,-560.0,0.00022574,2]
[372604449,1752701453430,-460.0,0.00022578,2]
[372604451,1752701453439,-460.0,0.00022578,2]
[372604453,1752701453449,-460.0,0.00022578,2]
[372604455,1752701453459,-3589.75,0.00022578,2]
[372604457,1752701453468,-1372.91529831,0.00022578,2]
[372604475,1752701453624,-1194.32,0.0001929,2]